[Event "34th Voivoda Cup 2018"]
[Site "Legnica"]
[Date "2018.11.24"]
[Round "4"]
[White "Kriebel, Tadeas"]
[Black "Lewtak, Damian"]
[Result "1-0"]
[ECO "B34"]
[WhiteElo "2515"]
[BlackElo "2411"]
[Annotator "ChessBase"]
[PlyCount "65"]
[EventDate "2018.11.22"]
[EventType "tourn"]
[EventCountry "POL"]
[SourceTitle "playchess.com"]
[Source "ChessBase"]
[SourceQuality "1"]
[TimeControl "40/5400+30:900+30"]

1. e4 {[%emt 0:00:00]} c5 {[%emt 0:00:00]} 2. Nf3 {[%emt 0:00:00]} Nc6 {[%emt 0:00:00]} 3. d4 {[%emt 0:00:00]} cxd4 {[%emt 0:00:00]} 4. Nxd4 {[%emt 0:00:00]} Nf6 {[%emt 0:00:00]} 5. Nc3 {[%emt 0:00:00]} e5 {[%emt 0:00:00]} 6. Ndb5 {[%emt 0:00:02]} d6 {[%emt 0:00:00]} 7. Nd5 {[%emt 0:00:29]} Nxd5 {[%emt 0:00:06]} 8. exd5 {[%emt 0:00:05]} Nb8 {[%emt 0:02:25]} 9. a4 {[%emt 0:00:12]} Be7 {[%emt 0:03:46]} 10. Be2 {[%emt 0:00:07]} O-O {[%emt 0:01:04]} 11. O-O {[%emt 0:00:05]} Nd7 {[%emt 0:00:36]} 12. Bd2 {[%emt 0:03:26]} f5 {[%emt 0:01:43]} 13. a5 {[%emt 0:02:24]} a6 {[%emt 0:05:22]} 14. Na3 {[%emt 0:00:06]} Bg5 {[%emt 0:00:06]} 15. Nc4 {[%emt 0:03:42]} Bxd2 {[%emt 0:03:10]} 16. Qxd2 {[%emt 0:00:09]} Rf6 {[%emt 0:00:07]} 17. f4 {[%emt 0:01:17]} Rh6 {[%emt 0:03:24]} 18. Ra3 {[%emt 0:05:15]} Rb8 {[%emt 0:08:25]} 19. b4 {[%emt 0:05:52]} Kh8 {[%emt 0:17:30]} 20. Re3 {[%emt 0:14:51]} e4 {[%emt 0:04:06]} 21. Qd4 {[%emt 0:01:37]} b5 {[%emt 0:03:06]} 22. axb6 {[%emt 0:00:58]} Qf6 {[%emt 0:01:19]} 23. Qxf6 {[%emt 0:01:55]} Rxf6 {[%emt 0:00:42]} 24. Rc3 {[%emt 0:00:57]} Bb7 {[%emt 0:01:18]} 25. Rd1 {[%emt 0:00:11]} Kg8 {[%emt 0:04:58]} 26. Na5 {[%emt 0:02:32]} Nxb6 {[%emt 0:00:24]} 27. Nxb7 {[%emt 0:00:51]} Rxb7 {[%emt 0:00:05]} 28. Bxa6 {[%emt 0:00:52]} Ra7 {[%emt 0:00:06]} 29. Bb5 {[%emt 0:00:21]} Kf8 {[%emt 0:00:54]} 30. Rc6 {[%emt 0:00:38]} Rb7 {[%emt 0:00:04]} 31. c4 {[%emt 0:01:03]} Nd7 {[%emt 0:00:05]} 32. Ra1 {[%emt 0:01:49]} Ke7 {[%emt 0:00:16]} 33. Rca6 {[%emt 0:04:02]} 1-0

[Event "34th Voivoda Cup 2018"]
[Site "Legnica"]
[Date "2018.11.25"]
[Round "5"]
[White "Gleizerov, Evgeny"]
[Black "Sieciechowicz, Marcin"]
[Result "1-0"]
[ECO "D80"]
[WhiteElo "2505"]
[BlackElo "2432"]
[Annotator "ChessBase"]
[PlyCount "93"]
[EventDate "2018.11.22"]
[EventType "tourn"]
[EventCountry "POL"]
[SourceTitle "playchess.com"]
[Source "ChessBase"]
[SourceQuality "1"]
[TimeControl "40/5400+30:900+30"]

1. d4 {[%emt 0:00:00]} Nf6 {[%emt 0:00:00]} 2. c4 {[%emt 0:00:00]} g6 {[%emt 0:00:00]} 3. Nc3 {[%emt 0:00:00]} d5 {[%emt 0:00:00]} 4. e3 {[%emt 0:00:00]} Bg7 {[%emt 0:00:42]} 5. cxd5 {[%emt 0:00:04]} Nxd5 {[%emt 0:00:08]} 6. Nxd5 {[%emt 0:00:03]} Qxd5 {[%emt 0:00:08]} 7. Ne2 {[%emt 0:00:02]} O-O {[%emt 0:02:24]} 8. Nc3 {[%emt 0:00:41]} Qd8 {[%emt 0:04:18]} 9. Be2 {[%emt 0:00:14]} e5 {[%emt 0:04:36]} 10. d5 {[%emt 0:00:47]} c6 {[%emt 0:01:48]} 11. e4 {[%emt 0:01:46]} cxd5 {[%emt 0:04:25]} 12. exd5 {[%emt 0:00:49]} b6 {[%emt 0:06:56]} 13. O-O {[%emt 0:02:05]} Ba6 {[%emt 0:04:39]} 14. Be3 {[%emt 0:03:22]} Bxe2 {[%emt 0:01:37]} 15. Qxe2 {[%emt 0:00:09]} Nd7 {[%emt 0:03:15]} 16. a4 {[%emt 0:10:36]} Nf6 {[%emt 0:08:28]} 17. Rfd1 {[%emt 0:01:27]} Qd7 {[%emt 0:01:03]} 18. a5 {[%emt 0:02:30]} bxa5 {[%emt 0:01:35]} 19. Rxa5 {[%emt 0:00:11]} Rfb8 {[%emt 0:09:17]} 20. d6 {[%emt 0:03:41]} Re8 {[%emt 0:13:39]} 21. Nb5 {[%emt 0:06:33]} Red8 {[%emt 0:04:18]} 22. Nc7 {[%emt 0:09:50]} Rab8 {[%emt 0:00:07]} 23. Rxa7 {[%emt 0:02:21]} Qc6 {[%emt 0:00:09]} 24. Ra6 {[%emt 0:02:21]} Qe4 {[%emt 0:01:45]} 25. h3 {[%emt 0:09:42]} Rd7 {[%emt 0:00:21]} 26. Qd2 {[%emt 0:06:30]} Bf8 {[%emt 0:08:03]} 27. Bc5 {[%emt 0:19:00]} Qc4 {[%emt 0:03:57]} 28. Rc1 {[%emt 0:01:43]} Qb3 {[%emt 0:01:37]} 29. Ba3 {[%emt 0:04:14]} Ne4 {[%emt 0:01:55]} 30. Qd5 {[%emt 0:04:42]} Qxd5 {[%emt 0:08:41]} 31. Nxd5 {[%emt 0:00:02]} Bxd6 {[%emt 0:00:21]} 32. Nf6+ {[%emt 0:02:51]} Nxf6 {[%emt 0:00:01]} 33. Bxd6 {[%emt 0:00:05]} Re8 {[%emt 0:01:11]} 34. b4 {[%emt 0:00:38]} Ne4 {[%emt 0:01:43]} 35. Bc7 {[%emt 0:00:17]} Rc8 {[%emt 0:03:22]} 36. Rac6 {[%emt 0:00:06]} Nd2 {[%emt 0:00:22]} 37. Bxe5 {[%emt 0:00:46]} Rxc6 {[%emt 0:00:32]} 38. Rxc6 {[%emt 0:00:02]} f6 {[%emt 0:00:19]} 39. Bxf6 {[%emt 0:02:35]} Ne4 {[%emt 0:01:08]} 40. f3 {[%emt 0:00:00]} Rd1+ {[%emt 0:00:00]} 41. Kh2 {[%emt 0:01:04]} Nd2 {[%emt 0:03:50]} 42. Kg3 {[%emt 0:04:34]} Kf7 {[%emt 0:01:08]} 43. Bc3 {[%emt 0:01:14]} Nb3 {[%emt 0:00:50]} 44. Rc7+ {[%emt 0:00:16]} Ke6 {[%emt 0:00:07]} 45. Rxh7 {[%emt 0:00:06]} Rd3 {[%emt 0:00:06]} 46. Bh8 {[%emt 0:00:56]} Nd2 {[%emt 0:01:58]} 47. Rg7 {[%emt 0:01:03]} 1-0

[Event "34th Voivoda Cup 2018"]
[Site "Legnica"]
[Date "2018.11.25"]
[Round "5"]
[White "Wieczorek, Oskar"]
[Black "Nasuta, Grzegorz"]
[Result "1/2-1/2"]
[ECO "D17"]
[WhiteElo "2468"]
[BlackElo "2520"]
[Annotator "RC"]
[PlyCount "149"]
[EventDate "2018.11.22"]
[EventType "tourn"]
[EventCountry "POL"]
[SourceTitle "playchess.com"]
[Source "ChessBase"]
[SourceQuality "1"]
[TimeControl "40/5400+30:900+30"]

1. d4 {[%emt 0:00:15]} d5 {[%emt 0:00:00]} 2. c4 {[%emt 0:00:34]} c6 {[%emt 0:00:02]} 3. Nf3 {[%emt 0:00:39]} Nf6 {[%emt 0:00:06]} 4. Nc3 {[%emt 0:00:39]} dxc4 {[%emt 0:01:33]} 5. a4 {[%emt 0:02:58]} Bf5 {[%emt 0:00:14]} 6. Ne5 {[%emt 0:01:05]} Nbd7 {[%emt 0:00:19]} 7. Nxc4 {[%emt 0:00:53]} Nb6 {[%emt 0:00:13]} 8. Ne5 {[%emt 0:02:25]} a5 {[%emt 0:00:18]} 9. f3 {[%emt 0:04:26]} Nfd7 {[%emt 0:00:41]} 10. e4 {[%emt 0:00:58]} Nxe5 {[%emt 0:00:46]} 11. dxe5 {[%emt 0:20:30]} Qxd1+ {[%emt 0:00:17]} 12. Nxd1 {[%emt 0:01:50]} Be6 {[%emt 0:00:10]} 13. Be3 {[%emt 0:06:33]} Nc4 {[%emt 0:05:00]} 14. f4 {[%emt 0:10:10]} O-O-O {[%emt 0:29:15]} 15. Bxc4 {[%emt 0:21:38]} Bxc4 {[%emt 0:00:07]} 16. Bb6 {[%emt 0:00:04]} Rd7 {[%emt 0:17:45]} 17. Ne3 {[%emt 0:02:25]} Bd3 {[%emt 0:01:32]} 18. e6 {[%emt 0:13:05]} fxe6 {[%emt 0:00:53]} 19. Bxa5 {[%emt 0:00:06]} g5 {[%emt 0:11:04]} 20. fxg5 {[%emt 0:03:39]} Bg7 {[%emt 0:00:32]} 21. O-O-O {[%emt 0:01:37]} Rf8 {[%emt 0:05:30]} 22. Bc3 {[%emt 0:00:39]} Bxc3 {[%emt 0:00:37]} 23. bxc3 {[%emt 0:00:01]} Rf4 {[%emt 0:02:19]} 24. h4 {[%emt 0:00:20]} Rxe4 {[%emt 0:02:18]} 25. Rh3 {[%emt 0:00:05]} Rxa4 {[%emt 0:00:32]} 26. Kb2 {[%emt 0:00:26]} Bf5 {[%emt 0:06:00]} 27. Rxd7 {[%emt 0:01:45]} Kxd7 {[%emt 0:00:01]} 28. Rh2 {[%emt 0:03:15]} Re4 {[%emt 0:06:52]} 29. Nxf5 {[%emt 0:00:19]} exf5 {[%emt 0:00:01]} 30. h5 {[%emt 0:00:07]} Ra4 {[%emt 0:00:17]} 31. g3 {[%emt 0:01:10]} Ra8 {[%emt 0:01:00]} 32. Rf2 {[%emt 0:00:31]} e6 {[%emt 0:08:42]} 33. g4 {[%emt 0:00:08]} fxg4 {[%emt 0:00:26]} 34. Rf4 {[%emt 0:00:19]} Rg8 {[%emt 0:00:28]} 35. Rxg4 {[%emt 0:00:15]} e5 {[%emt 0:00:08]} 36. g6 {[%emt 0:01:26]} hxg6 {[%emt 0:00:13]} 37. hxg6 {[%emt 0:00:37]} Ke6 {[%emt 0:00:29]} 38. Kc2 {[%emt 0:00:34]} Kf5 {[%emt 0:00:43]} 39. Rb4 {[%emt 0:00:13]} b5 {[%emt 0:00:04]} 40. c4 {[%emt 0:00:00]} bxc4 {[%emt 0:00:00]} 41. Rxc4 {[%emt 0:00:32]} Rxg6 {[%emt 0:00:11]} 42. Kd3 {[%emt 0:00:06]} Rh6 {[%emt 0:07:44]} 43. Ke3 {[%emt 0:00:48]} Rd6 {[%emt 0:00:05]} 44. Rc1 {[%emt 0:07:27]} Ke6 {[%emt 0:00:31]} 45. Rc5 {[%emt 0:00:39]} Kf5 {[%emt 0:01:00]} 46. Kf3 {[%emt 0:04:29]} Re6 {[%emt 0:06:30]} 47. Ke3 {[%emt 0:00:19]} Rg6 {[%emt 0:00:01]} 48. Rc1 {[%emt 0:04:04]} Rh6 {[%emt 0:00:01]} 49. Rc5 {[%emt 0:00:31]} Rf6 {[%emt 0:00:01]} 50. Rc1 {[%emt 0:00:43]} Rd6 {[%emt 0:01:22]} 51. Rc4 {[%emt 0:00:11]} Kf6 {[%emt 0:01:11]} 52. Rc1 {[%emt 0:01:18]} Ke7 {[%emt 0:01:27]} 53. Ke4 {[%emt 0:00:42]} Re6 {[%emt 0:01:47]} 54. Rd1 {[%emt 0:00:12]} Ke8 {[%emt 0:01:46]} 55. Rd2 {[%emt 0:00:22]} Ke7 {[%emt 0:00:07]} 56. Rd1 {[%emt 0:00:02]} Rd6 {[%emt 0:00:03]} 57. Rc1 {[%emt 0:00:09]} Kd7 {[%emt 0:00:26]} 58. Kxe5 {[%emt 0:00:06]} Kc7 {[%emt 0:00:01]} 59. Ke4 {[%emt 0:01:30]} Kb6 {[%emt 0:00:00]} 60. Rb1+ {[%emt 0:01:03]} Kc5 {[%emt 0:00:05]} 61. Rc1+ {[%emt 0:00:27]} Kb4 {[%emt 0:00:10]} 62. Rb1+ {[%emt 0:00:46]} Kc3 {[%emt 0:01:59]} 63. Rc1+ {[%emt 0:00:07]} Kb2 {[%emt 0:00:49]} 64. Rc5 {[%emt 0:00:25]} Kb3 {[%emt 0:00:01]} 65. Rc1 {[%emt 0:01:05]} Kb4 {[%emt 0:00:58]} 66. Rb1+ {[%emt 0:00:05]} Kc5 {[%emt 0:00:03]} 67. Rc1+ {[%emt 0:00:02]} Kb6 {[%emt 0:00:02]} 68. Rb1+ {[%emt 0:00:05]} Kc7 {[%emt 0:00:03]} 69. Rb3 {[%emt 0:01:40]} Rh6 {[%emt 0:02:26]} 70. Kd4 {[%emt 0:00:15]} Kd6 {[%emt 0:00:07]} 71. Rg3 {[%emt 0:00:07]} Rh4+ {[%emt 0:00:08]} 72. Kc3 {[%emt 0:00:04]} Kc5 {[%emt 0:00:09]} 73. Rg5+ {[%emt 0:00:05]} Kb6 {[%emt 0:00:07]} 74. Rf5 {[%emt 0:00:30]} c5 {[%emt 0:00:03]} 75. Rf8 {[%emt 0:00:30]} 1/2-1/2

[Event "34th Voivoda Cup 2018"]
[Site "Legnica"]
[Date "2018.11.25"]
[Round "5"]
[White "Lewtak, Damian"]
[Black "Simacek, Pavel"]
[Result "1/2-1/2"]
[ECO "A45"]
[WhiteElo "2411"]
[BlackElo "2503"]
[Annotator "ChessBase"]
[PlyCount "80"]
[EventDate "2018.11.22"]
[EventType "tourn"]
[EventCountry "POL"]
[SourceTitle "playchess.com"]
[Source "ChessBase"]
[SourceQuality "1"]
[TimeControl "40/5400+30:900+30"]

1. d4 {[%emt 0:00:00]} Nf6 {[%emt 0:00:00]} 2. c3 {[%emt 0:00:00]} g6 {[%emt 0:01:42]} 3. Bf4 {[%emt 0:00:00]} Bg7 {[%emt 0:00:09]} 4. h3 {[%emt 0:00:05]} O-O {[%emt 0:01:51]} 5. Bh2 {[%emt 0:00:13]} b6 {[%emt 0:04:18]} 6. Nd2 {[%emt 0:00:39]} Bb7 {[%emt 0:00:05]} 7. Ngf3 {[%emt 0:00:07]} d6 {[%emt 0:00:14]} 8. Qc2 {[%emt 0:03:01]} Nbd7 {[%emt 0:00:59]} 9. e4 {[%emt 0:00:32]} e5 {[%emt 0:01:11]} 10. Bd3 {[%emt 0:02:47]} Nh5 {[%emt 0:14:42]} 11. O-O {[%emt 0:01:28]} Nf4 {[%emt 0:02:54]} 12. Bxf4 {[%emt 0:00:07]} exf4 {[%emt 0:00:03]} 13. Rfe1 {[%emt 0:00:06]} Re8 {[%emt 0:01:15]} 14. Rad1 {[%emt 0:00:59]} h5 {[%emt 0:08:24]} 15. Bc4 {[%emt 0:04:00]} Nf8 {[%emt 0:03:21]} 16. Nf1 {[%emt 0:11:48]} Qe7 {[%emt 0:10:20]} 17. Qd2 {[%emt 0:06:26]} Bh6 {[%emt 0:00:18]} 18. Bd5 {[%emt 0:00:19]} Bxd5 {[%emt 0:11:30]} 19. exd5 {[%emt 0:00:06]} Qd7 {[%emt 0:00:03]} 20. Qc2 {[%emt 0:02:52]} g5 {[%emt 0:03:42]} 21. Rxe8 {[%emt 0:03:27]} Rxe8 {[%emt 0:01:33]} 22. Re1 {[%emt 0:00:04]} Rxe1 {[%emt 0:03:52]} 23. Nxe1 {[%emt 0:00:06]} Qb5 {[%emt 0:00:26]} 24. c4 {[%emt 0:08:45]} Qa5 {[%emt 0:00:07]} 25. Qd1 {[%emt 0:00:07]} Qxa2 {[%emt 0:10:18]} 26. Qxh5 {[%emt 0:02:10]} Bg7 {[%emt 0:00:04]} 27. Qxg5 {[%emt 0:08:17]} Qxc4 {[%emt 0:03:30]} 28. Nf3 {[%emt 0:01:07]} a5 {[%emt 0:01:11]} 29. h4 {[%emt 0:00:29]} Nh7 {[%emt 0:00:41]} 30. Qd8+ {[%emt 0:00:32]} Nf8 {[%emt 0:00:18]} 31. Qg5 {[%emt 0:01:12]} Nh7 {[%emt 0:05:03]} 32. Qxf4 {[%emt 0:03:08]} Nf6 {[%emt 0:01:33]} 33. Ne3 {[%emt 0:00:37]} Nxd5 {[%emt 0:00:13]} 34. Qe4 {[%emt 0:06:26]} Nxe3 {[%emt 0:01:57]} 35. fxe3 {[%emt 0:00:10]} Kf8 {[%emt 0:04:13]} 36. Ng5 {[%emt 0:03:58]} Bh6 {[%emt 0:01:09]} 37. Qf5 {[%emt 0:02:03]} a4 {[%emt 0:02:11]} 38. Kh2 {[%emt 0:00:11]} b5 {[%emt 0:00:52]} 39. Qf6 {[%emt 0:00:05]} Bxg5 {[%emt 0:00:06]} 40. Qxg5 {[%emt 0:00:00]} b4 1/2-1/2

[Event "34th Voivoda Cup 2018"]
[Site "Legnica"]
[Date "2018.11.25"]
[Round "5"]
[White "Murdzia, Piotr"]
[Black "Hirneise, Tobias"]
[Result "1/2-1/2"]
[ECO "E16"]
[WhiteElo "2411"]
[BlackElo "2472"]
[Annotator "ChessBase"]
[PlyCount "126"]
[EventDate "2018.11.22"]
[EventType "tourn"]
[EventCountry "POL"]
[SourceTitle "playchess.com"]
[Source "ChessBase"]
[SourceQuality "1"]
[TimeControl "40/5400+30:900+30"]

1. d4 {[%emt 0:00:00]} Nf6 {[%emt 0:00:00]} 2. c4 {[%emt 0:00:00]} e6 {[%emt 0:00:00]} 3. Nf3 {[%emt 0:00:00]} b6 {[%emt 0:00:00]} 4. g3 {[%emt 0:00:40]} Bb7 {[%emt 0:01:13]} 5. Bg2 {[%emt 0:00:07]} Bb4+ {[%emt 0:00:18]} 6. Bd2 {[%emt 0:02:19]} a5 {[%emt 0:00:06]} 7. O-O {[%emt 0:00:42]} O-O {[%emt 0:00:05]} 8. Nc3 {[%emt 0:01:50]} Ne4 {[%emt 0:01:29]} 9. Rc1 {[%emt 0:03:56]} Bxc3 {[%emt 0:08:11]} 10. Bxc3 {[%emt 0:00:08]} Nxc3 {[%emt 0:00:40]} 11. Rxc3 {[%emt 0:00:07]} Be4 {[%emt 0:00:20]} 12. Qd2 {[%emt 0:02:11]} Qc8 {[%emt 0:01:28]} 13. Re3 {[%emt 0:04:15]} d5 {[%emt 0:02:49]} 14. Rc1 {[%emt 0:01:20]} Nd7 {[%emt 0:01:48]} 15. Bh3 {[%emt 0:13:47]} h6 {[%emt 0:09:22]} 16. Rec3 {[%emt 0:27:16]} c5 {[%emt 0:09:19]} 17. cxd5 {[%emt 0:02:10]} Bxd5 {[%emt 0:00:20]} 18. dxc5 {[%emt 0:01:19]} bxc5 {[%emt 0:00:42]} 19. Ne1 {[%emt 0:09:42]} Qb7 {[%emt 0:04:40]} 20. Nd3 {[%emt 0:00:34]} Rfd8 {[%emt 0:12:31]} 21. Nxc5 {[%emt 0:08:01]} Nxc5 {[%emt 0:00:07]} 22. Rxc5 {[%emt 0:00:04]} Bxa2 {[%emt 0:07:21]} 23. Qc3 {[%emt 0:01:31]} Qb3 {[%emt 0:02:13]} 24. Qxb3 {[%emt 0:01:23]} Bxb3 {[%emt 0:00:02]} 25. Bg2 {[%emt 0:00:17]} Ra6 {[%emt 0:01:43]} 26. Be4 {[%emt 0:01:23]} a4 {[%emt 0:02:09]} 27. Bd3 {[%emt 0:00:48]} Rad6 {[%emt 0:01:00]} 28. Rc8 {[%emt 0:01:56]} g5 {[%emt 0:00:17]} 29. f4 {[%emt 0:01:00]} Kg7 {[%emt 0:00:26]} 30. Rxd8 {[%emt 0:01:07]} Rxd8 {[%emt 0:01:18]} 31. Kf2 {[%emt 0:00:12]} gxf4 {[%emt 0:01:18]} 32. gxf4 {[%emt 0:00:06]} Rd4 {[%emt 0:00:04]} 33. Ke3 {[%emt 0:00:20]} Rb4 {[%emt 0:00:04]} 34. Rc5 {[%emt 0:01:30]} Rb8 {[%emt 0:02:53]} 35. Ra5 {[%emt 0:01:19]} Rc8 {[%emt 0:01:03]} 36. Kd2 {[%emt 0:00:58]} f5 {[%emt 0:00:56]} 37. Rb5 {[%emt 0:02:05]} Kf6 {[%emt 0:03:21]} 38. e4 {[%emt 0:01:22]} fxe4 {[%emt 0:00:39]} 39. Bxe4 {[%emt 0:00:11]} Rd8+ {[%emt 0:01:00]} 40. Ke3 {[%emt 0:00:00]} Rd1 {[%emt 0:00:00]} 41. Rh5 {[%emt 0:01:11]} Kg7 {[%emt 0:02:16]} 42. Rh3 {[%emt 0:00:34]} Re1+ {[%emt 0:02:59]} 43. Kd4 {[%emt 0:14:21]} Re2 {[%emt 0:00:27]} 44. Rc3 {[%emt 0:00:14]} Kf6 {[%emt 0:03:48]} 45. Rh3 {[%emt 0:00:35]} Rxb2 {[%emt 0:03:59]} 46. Rxh6+ {[%emt 0:00:14]} Ke7 {[%emt 0:00:33]} 47. Rh7+ {[%emt 0:07:06]} Kd6 {[%emt 0:00:20]} 48. Ra7 {[%emt 0:00:14]} Rxh2 {[%emt 0:01:14]} 49. Ra6+ {[%emt 0:00:24]} Kc7 {[%emt 0:01:06]} 50. Kc5 {[%emt 0:05:51]} Rd2 {[%emt 0:03:55]} 51. Ra7+ {[%emt 0:00:27]} Kd8 {[%emt 0:01:37]} 52. Bc6 {[%emt 0:00:08]} Rc2+ {[%emt 0:05:04]} 53. Kd6 {[%emt 0:00:08]} Rd2+ {[%emt 0:00:14]} 54. Kc5 {[%emt 0:00:04]} Bd1 {[%emt 0:04:37]} 55. Bxa4 {[%emt 0:00:42]} Rd5+ {[%emt 0:02:07]} 56. Kc4 {[%emt 0:00:32]} Bxa4 {[%emt 0:01:08]} 57. Rxa4 {[%emt 0:00:04]} Ke7 {[%emt 0:00:04]} 58. Kc3 {[%emt 0:00:28]} Kf6 {[%emt 0:00:06]} 59. Rd4 {[%emt 0:00:07]} Ra5 {[%emt 0:00:49]} 60. Kd3 {[%emt 0:00:22]} Kf5 {[%emt 0:00:44]} 61. Rb4 {[%emt 0:00:12]} Ra3+ {[%emt 0:00:40]} 62. Ke2 {[%emt 0:00:06]} Ra2+ {[%emt 0:00:23]} 63. Ke3 {[%emt 0:00:09]} Ra3+ {[%emt 0:00:04]} 1/2-1/2